[Event "9th Porticcio Open 2024"]
[Site "Porticcio"]
[Date "2024.07.02"]
[Round "5.3"]
[White "Lagarde, Maxime"]
[Black "Yankelevich, Lev"]
[Result "1/2-1/2"]
[ECO "C84"]
[WhiteElo "2604"]
[BlackElo "2416"]
[Annotator "TA"]
[PlyCount "94"]
[EventDate "2024.07.01"]
[EventType "swiss"]
[EventCountry "FRA"]
[SourceTitle "playchess.com"]
[Source "ChessBase"]
[SourceQuality "1"]
[TimeControl "5400+30"]

{[%evp 14,94,23,0,22,8,23,23,29,27,16,19,12,20,8,13,20,20,9,0,10,28,17,6,16,0,10,0,0,0,0,0,18,12,36,0,7,0,0,0,16,16,13,20,78,87,82,74,93,40,126,0,0,0,24,-82,11,7,11,12,29,20,33,33,73,28,23,20,43,28,18,17,20,25,25,0,27,27,20,35,26,32,25]} 1. e4 {[%emt 0:00:14]} e5 {[%emt 0:00:05]} 2. Nf3 {[%emt 0:00:03]} Nc6 {[%emt 0:00:12]} 3. Bb5 {[%emt 0:00:03]} a6 {[%emt 0:00:09]} 4. Ba4 {[%emt 0:00:03]} Nf6 {[%emt 0:00:19]} 5. O-O {[%emt 0:00:06]} Be7 {[%emt 0:00:05]} 6. d3 {[%emt 0:00:19]} b5 {[%emt 0:00:09]} 7. Bb3 {[%emt 0:00:04]} d6 {[%emt 0:00:08]} 8. Bd2 {[%emt 0:00:04] C84: Closed Ruy Lopez: Unusual White 6th moves.} O-O {[%emt 0:03:32]} 9. h3 {[%emt 0:00:05]} Be6 {[%emt 0:01:43]} 10. Nc3 {[%emt 0:00:10]} Bxb3 {[%emt 0:07:31]} 11. axb3 {[%emt 0:03:03]} Qd7 {[%emt 0:01:09]} 12. Re1 {[%emt 0:04:34]} Rfe8 {[%emt 0:02:14]} 13. Nd5 $146 {[%emt 0:08:15]} ({Predecessor:} 13. Bg5 h6 14. Bh4 Nb4 15. d4 Rad8 16. Na2 Nxa2 17. Rxa2 Qc6 18. Qd3 Nd7 19. d5 {1-0 Yuffa,D (2606)-Walter,S (2382) Bundesliga 2324 2023 (10.8)}) 13... Nxd5 {[%emt 0:04:03]} 14. exd5 {[%emt 0:00:08]} Nd8 {[%emt 0:00:56]} 15. d4 {[%emt 0:05:31]} f6 {[%emt 0:00:47]} 16. c4 {[%emt 0:02:25]} c6 {[%emt 0:00:00]} 17. dxc6 {[%emt 0:06:54]} Qxc6 {[%emt 0:02:05]} 18. Rc1 {[%emt 0:06:43]} Nf7 {[%emt 0:02:33]} 19. Ba5 {[%emt 0:12:01]} Bd8 {[%emt 0:07:36]} 20. Qd2 {[%emt 0:01:21]} Rb8 {[%emt 0:07:37]} 21. Bxd8 {[%emt 0:16:26]} Rexd8 {[%emt 0:03:11]} 22. Qc2 {[%emt 0:03:38]} bxc4 {[%emt 0:03:53]} 23. bxc4 {[%emt 0:00:22]} Rb4 {[%emt 0:00:08]} 24. Re3 {[%emt 0:05:16]} a5 {[%emt 0:05:05]} 25. d5 {[%emt 0:04:52]} Qb6 {[%emt 0:05:11]} 26. b3 {[%emt 0:00:12]} Rb8 {[%emt 0:00:22]} 27. Nd2 {[%emt 0:00:10]} Nd8 {[%emt 0:02:21]} 28. Qf5 {[%emt 0:04:40]} Nf7 {[%emt 0:06:16]} (28... Nb7 $1 $11 {remains equal.}) 29. Rg3 {[%emt 0:02:24]} Kh8 {[%emt 0:01:33]} 30. Ne4 {[%emt 0:00:24]} Qd8 {[%emt 0:00:40]} 31. Rcc3 {[%emt 0:03:30]} ({White should try} 31. Ra1 $16) 31... R4b7 {[%emt 0:01:45]} (31... Qc8 $14 32. Qh5 Qf8) 32. Rcf3 {[%emt 0:03:49]} ({White should play} 32. c5 $16 {Strongly threatening cxd6.} Nh6 33. Qe6 dxc5 34. d6 (34. Nxc5 Re7 $11)) 32... Nh6 $1 $11 {[%emt 0:03:09]} 33. Qh5 $1 {[%emt 0:02:14]} ({But not} 33. Qe6 f5 34. Nxd6 Re7 $17) 33... f5 {[%emt 0:01:45]} 34. Ng5 {[%emt 0:01:28] [#]} (34. Rxf5 $1 $11 {was the only way to keep the balance.} Nxf5 35. Qxf5) 34... Qe8 {[%emt 0:06:09]} (34... f4 $1 $17 {[%cal Rf4g3]} 35. Ne6 Qe8 36. Qxe8+ Rxe8) 35. Qxe8+ $11 {[%emt 0:00:17]} Rxe8 {[%emt 0:00:02]} 36. Rc3 {[%emt 0:00:49]} Rc8 {[%emt 0:05:57]} 37. Ne6 {[%emt 0:01:24]} f4 {[%emt 0:02:07]} 38. Rgd3 {[%emt 0:00:03]} Nf5 {[%emt 0:00:05]} 39. c5 {[%emt 0:01:26]} Kg8 {[%emt 0:05:52]} 40. cxd6 {[%emt 0:02:24]} Rxc3 {[%emt 0:01:27]} 41. Rxc3 {[%emt 0:00:04]} Nxd6 {[%emt 0:00:04]} 42. Rc6 {[%emt 0:00:37]} Rd7 {[%emt 0:00:02]} 43. Nc5 {[%emt 0:00:10]} Rd8 {[%emt 0:00:04]} 44. Ne6 {[%emt 0:00:07]} Rd7 {[%emt 0:00:03]} 45. Ra6 {[%emt 0:01:23]} Ne4 {[%emt 0:01:51]} 46. f3 {[%emt 0:01:51]} Nd2 $1 {[%emt 0:02:29]} 47. d6 {[%emt 0:01:12]} Nxb3 {[%emt 0:02:09]} 1/2-1/2

[Event "9th Porticcio Open 2024"]
[Site "Porticcio"]
[Date "2024.07.02"]
[Round "5.4"]
[White "Kavutskiy, Konstantin"]
[Black "Clarke, Brandon G I"]
[Result "0-1"]
[ECO "E92"]
[WhiteElo "2345"]
[BlackElo "2498"]
[Annotator "TA"]
[PlyCount "84"]
[EventDate "2024.07.01"]
[EventType "swiss"]
[EventCountry "FRA"]
[SourceTitle "playchess.com"]
[Source "ChessBase"]
[SourceQuality "1"]
[TimeControl "5400+30"]

{[%evp 21,84,49,77,81,82,76,72,71,62,47,97,95,109,67,73,76,82,51,46,49,58,22,33,14,15,0,21,29,13,-72,-73,-78,-74,-72,0,0,0,0,0,0,0,-175,0,0,0,0,0,0,0,0,0,0,0,0,0,-29979,-29980,-29980,-29981,-29983,-29984,-29995,-29996,-29996,-29997]} 1. d4 {[%emt 0:07:45]} Nf6 {[%emt 0:00:18]} 2. c4 {[%emt 0:00:13]} g6 {[%emt 0:00:13]} 3. Nc3 {[%emt 0:00:12]} Bg7 {[%emt 0:01:32]} 4. e4 {[%emt 0:00:07]} d6 {[%emt 0:00:05]} 5. Nf3 {[%emt 0:00:39]} O-O {[%emt 0:02:32]} 6. Be2 {[%emt 0:00:14]} e5 {[%emt 0:00:32]} 7. d5 {[%emt 0:00:11]} a5 {[%emt 0:00:42]} 8. h3 {[%emt 1:25:09]} Na6 {[%emt 1:28:36]} 9. Bg5 {[%emt 0:00:30]} h6 {[%emt 0:00:30]} 10. Be3 {[%emt 0:00:30]} Nc5 {[%emt 0:00:30]} 11. Nd2 {[%emt 0:00:30]} Nfd7 {[%emt 0:00:30]} 12. g4 {[%emt 0:00:30]} c6 {[%emt 0:00:00]} 13. Qc2 {[%emt 0:00:00]} a4 {[%emt 0:00:00]} 14. h4 {[%emt 0:00:00][%cal Bh3h4,Bh4h5][%mdl 32] White is better.} Qa5 {[%emt 0:00:00]} 15. h5 {[%emt 0:00:00]} g5 {[%emt 0:00:00]} (15... a3 $14) 16. O-O $16 {[%emt 0:00:00]} a3 {[%emt 0:00:00]} 17. Nb3 {[%emt 0:00:00]} Qb4 {[%emt 0:00:00]} 18. Rab1 {[%emt 0:00:00]} axb2 {[%emt 0:00:00]} 19. Qxb2 {[%emt 0:00:00]} Na4 {[%emt 0:00:00]} 20. Nxa4 {[%emt 0:00:00]} Qxa4 {[%emt 0:00:00]} 21. Nd2 {[%emt 0:00:00]} Qxa2 {[%emt 0:00:00]} 22. Qc1 {[%emt 0:00:00]} Bf6 {[%emt 0:00:00]} 23. Re1 {[%emt 0:00:00]} Bd8 {[%emt 0:00:00]} 24. Nb3 {[%emt 0:00:00] Black must now prevent Ra1.} Ba5 {[%emt 0:00:00] [#]} 25. Bd1 {[%emt 0:00:00]} Bxe1 $17 {[%emt 0:00:00]} 26. Ra1 {[%emt 0:00:00] [#]} Qxa1 $1 {[%emt 0:00:35]} 27. Nxa1 {[%emt 0:00:00] [#]} Bb4 {[%emt 0:02:56]} (27... Ba5 $1 $17) 28. Nc2 $11 {[%emt 0:00:00]} (28. Bxg5 Rxa1 29. Qxa1 hxg5 $17) 28... Bc5 {[%emt 0:00:36]} 29. Bxg5 {[%emt 0:00:00]} hxg5 {[%emt 0:00:25]} 30. Qxg5+ {[%emt 0:00:00]} Kh7 {[%emt 0:00:39] ...Rg8 is the strong threat.} 31. Qe7 $2 {[%emt 0:00:00] [#]} (31. Qf5+ $11 Kh8 32. Qg5) 31... Ra2 $2 {[%emt 0:02:49]} (31... Bb6 $1 $19 {[%cal Rb6d8] Hoping for ...Bd8.} 32. c5 (32. Qxd6 $2 Bc5 $19) 32... dxc5 (32... Bxc5 33. g5 $11) 33. dxc6 bxc6) 32. g5 {[%emt 0:00:00]} Rb2 {[%emt 0:01:58] Threatens to win with ...Rb1.} 33. Kg2 {[%emt 0:03:08]} Kg7 {[%emt 0:00:26]} 34. h6+ {[%emt 0:03:02]} Kg6 $1 {[%emt 0:00:01]} (34... Kh7 35. Bg4 Rxc2 36. Bxd7 $18) 35. Bg4 {[%emt 0:02:03]} Rxc2 {[%emt 0:00:02]} 36. Bxd7 {[%emt 0:01:06]} Rxf2+ {[%emt 0:00:31]} 37. Kg3 {[%emt 0:00:06]} Rg8 {[%emt 0:01:15]} 38. Bxc8 {[%emt 0:02:43][%mdl 8192]} (38. h7 $11 Kxh7 39. Bf5+ Kg7 (39... Bxf5 40. Qxf7+ Rg7 41. Qh5+ Kg8 42. Qe8+ Kh7 43. Qh5+ Kg8 44. Qe8+ Kh7 45. Qh5+ $11) 40. Qf6+ Kf8 41. Qd8+ Kg7 42. Qf6+ Kf8 43. Qd8+ Kg7 44. Qf6+) 38... Rxc8 {[%emt 0:00:01] Black mates.} 39. Qxb7 {[%emt 0:00:27]} Rg8 {[%emt 0:00:01]} 40. dxc6 {[%emt 0:00:26]} Kh5 {[%emt 0:00:15]} ({Weaker is} 40... Kxg5 41. h7 Rh8 42. c7 $11) 41. Qd7 {[%emt 0:00:47]} Rxg5+ {[%emt 0:00:12]} 42. Kh3 {[%emt 0:00:03]} Rf4 {[%emt 0:01:12] Weighted Error Value: White=0.30/Black=0.12 (very precise) .  Loses game:     	White=2     	---        Missed win:     	---       	Black=1      Mistake:       	White=1     	Black=2      Inaccurate:     	White=3     	---        OK:         	White=12    	Black=6      Best:        	White=3     	Black=2      Strong:       	---       	Black=1} 0-1

[Event "9th Porticcio Open 2024"]
[Site "Porticcio"]
[Date "2024.07.02"]
[Round "5.5"]
[White "Kuru, Atilla"]
[Black "Nevednichy, Vladislav"]
[Result "1-0"]
[ECO "B56"]
[WhiteElo "2314"]
[BlackElo "2471"]
[Annotator "TA"]
[PlyCount "123"]
[EventDate "2024.07.01"]
[EventType "swiss"]
[EventCountry "FRA"]
[SourceTitle "playchess.com"]
[Source "ChessBase"]
[SourceQuality "1"]
[TimeControl "5400+30"]

{[%evp 19,123,93,85,79,85,81,95,88,93,93,129,120,128,114,118,119,135,127,172,158,184,143,174,173,153,154,195,185,166,81,176,172,250,268,268,264,236,198,192,194,198,193,207,208,226,220,246,237,241,234,228,241,245,245,241,248,251,254,288,288,279,268,306,267,265,271,314,314,314,304,304,317,317,311,297,287,320,327,340,335,336,335,320,350,430,427,434,404,498,490,466,430,452,441,440,423,424,418,568,575,1017,875,1042,835,29949,11581]} 1. e4 {[%emt 0:00:02]} c5 {[%emt 0:02:53]} 2. Nf3 {[%emt 0:00:06]} d6 {[%emt 0:00:25]} 3. d4 {[%emt 0:00:07]} cxd4 {[%emt 0:00:05]} 4. Nxd4 {[%emt 0:00:03]} Nf6 {[%emt 0:00:05]} 5. Nc3 {[%emt 0:00:04]} Bd7 {[%emt 0:02:08]} 6. f3 {[%emt 0:00:07] B56: Classical Sicilian: Unusual Lines.} e5 {[%emt 0:01:32]} 7. Nb3 {[%emt 0:00:11]} Bc6 {[%emt 0:00:32]} 8. Be3 {[%emt 0:07:17]} Be7 {[%emt 0:05:34]} 9. Qd2 {[%emt 0:02:52]} d5 {[%emt 0:00:48]} 10. exd5 {[%emt 0:00:37]} Nxd5 {[%emt 0:00:13]} 11. Nxd5 {[%emt 0:15:20]} Qxd5 {[%emt 0:00:09]} 12. Qxd5 {[%emt 0:01:55]} Bxd5 {[%emt 0:00:02]} 13. O-O-O {[%emt 0:00:23]} Bc6 $146 {[%emt 0:09:20]} ({Predecessor:} 13... Be6 14. Nc5 Bxc5 15. Bxc5 Nd7 16. Bd6 O-O-O 17. Rd3 Nb8 18. Bxe5 f6 19. Bc3 Nc6 {1-0 Delgado Ramirez,N (2621)-Kovacevic,A (2474) Titled Tuesday intern op 6th June blitz 2020 (10)}) 14. Na5 {[%emt 0:00:18]} Nd7 {[%emt 0:10:15]} 15. Nxc6 {[%emt 0:00:58]} bxc6 {[%emt 0:00:02]} 16. Ba6 {[%emt 0:00:50]} Rb8 {[%emt 0:05:59]} 17. Rhe1 {[%emt 0:00:20]} (17. Bxa7 Ra8 18. Bb7 Rxa7 $17) 17... f6 {[%emt 0:01:12]} 18. f4 {[%emt 0:06:43]} ({Not} 18. Bxa7 Ra8 19. Bb7 Rxa7 $15) 18... Bc5 {[%emt 0:02:12]} 19. Bxc5 {[%emt 0:01:06]} Nxc5 {[%emt 0:00:02]} 20. Bf1 {[%emt 0:08:17]} Rd8 {[%emt 0:11:01]} 21. fxe5 {[%emt 0:02:12]} Rxd1+ {[%emt 0:00:14]} 22. Kxd1 {[%emt 0:00:04]} f5 {[%emt 0:02:04]} 23. Re3 {[%emt 0:00:25]} Ke7 {[%emt 0:00:16]} 24. Ke1 {[%emt 0:02:59]} (24. Ra3 $18 {has better winning chances.} Rd8+ 25. Kc1) 24... Rd8 {[%emt 0:03:23]} (24... Rb8 $16 {keeps fighting.}) 25. Ra3 $18 {[%emt 0:02:50]} Rd5 {[%emt 0:09:49]} (25... Rd7 {might work better.} 26. Bc4 g6) 26. Rxa7+ $18 {[%emt 0:01:24]} Nd7 {[%emt 0:00:03]} 27. e6 {[%emt 0:00:32]} Re5+ {[%emt 0:00:02]} 28. Kf2 {[%emt 0:00:49]} Kxe6 {[%emt 0:00:37]} 29. a4 {[%emt 0:00:24]} g5 {[%emt 0:02:04]} 30. a5 {[%emt 0:02:03]} Nf6 {[%emt 0:00:04]} 31. Be2 {[%emt 0:01:16]} Kd6 {[%emt 0:02:11]} 32. a6 {[%emt 0:06:27]} Ne4+ {[%emt 0:05:26]} 33. Ke1 {[%emt 0:00:32]} Ra5 {[%emt 0:00:04]} 34. Bd3 {[%emt 0:00:08]} ({Resist} 34. Rxh7 $6 Ra1+ 35. Bd1 Rxa6 $14) 34... Nc5 {[%emt 0:06:59]} 35. Bxf5 {[%emt 0:02:01]} Nxa6 {[%emt 0:00:40]} 36. Bxh7 {[%emt 0:00:07]} ({Don't do} 36. Rd7+ Ke5 $18) 36... Re5+ {[%emt 0:00:06]} 37. Kf2 {[%emt 0:00:05]} Nc7 {[%emt 0:00:32]} 38. Ra4 {[%emt 0:00:24]} Ne6 {[%emt 0:02:16]} 39. g3 {[%emt 0:00:34]} Rd5 {[%emt 0:00:42]} 40. Ke2 {[%emt 0:01:13]} Nc5 {[%emt 0:04:00]} 41. Rc4 {[%emt 0:01:55]} Re5+ {[%emt 0:01:01]} 42. Kf3 {[%emt 0:00:29]} Nd7 {[%emt 0:00:45]} 43. Rd4+ {[%emt 0:00:30]} Kc7 {[%emt 0:00:10]} 44. Be4 {[%emt 0:01:02]} Rb5 {[%emt 0:03:15]} 45. b3 {[%emt 0:00:29]} Ne5+ {[%emt 0:00:12]} 46. Kg2 {[%emt 0:00:30]} Rb8 {[%emt 0:00:18]} 47. Rd2 {[%emt 0:01:21]} Rb4 {[%emt 0:02:26]} 48. Bf5 {[%emt 0:00:27]} Rb8 {[%emt 0:00:04]} 49. h4 {[%emt 0:00:43]} gxh4 {[%emt 0:00:53]} 50. gxh4 {[%emt 0:00:02]} Rg8+ {[%emt 0:00:49]} 51. Kh3 {[%emt 0:00:15]} Rh8 {[%emt 0:01:38]} 52. Kg3 {[%emt 0:01:14]} Rf8 {[%emt 0:03:21]} 53. Be4 {[%emt 0:00:27]} c5 {[%emt 0:00:38]} 54. Rd5 {[%emt 0:00:44]} Nd7 {[%emt 0:00:03]} 55. Bf5 {[%emt 0:00:20]} Nf6 {[%emt 0:00:06]} 56. Rxc5+ {[%emt 0:00:10]} Kd6 {[%emt 0:00:01]} 57. Ra5 {[%emt 0:00:35]} Rg8+ {[%emt 0:00:10]} 58. Kf3 {[%emt 0:00:06]} Rh8 {[%emt 0:00:20]} 59. Kf4 {[%emt 0:00:52]} Rh5 {[%emt 0:01:20]} 60. c4 {[%emt 0:00:58]} Ke7 {[%emt 0:00:03]} 61. Re5+ {[%emt 0:00:20]} Kf8 {[%emt 0:00:24]} 62. Bg6 {[%emt 0:00:26]} 1-0

[Event "9th Porticcio Open 2024"]
[Site "Porticcio"]
[Date "2024.07.02"]
[Round "5.6"]
[White "Rakotomaharo, Fy Antenaina"]
[Black "Ouellet, Maili-Jade"]
[Result "1-0"]
[ECO "A09"]
[WhiteElo "2448"]
[BlackElo "2290"]
[Annotator "TA"]
[PlyCount "61"]
[EventDate "2024.07.01"]
[EventType "swiss"]
[EventCountry "FRA"]
[SourceTitle "playchess.com"]
[Source "ChessBase"]
[SourceQuality "1"]
[TimeControl "5400+30"]

{[%evp 10,61,2,8,13,11,11,24,60,77,59,54,137,91,110,70,76,70,65,50,110,55,225,198,310,308,296,236,233,233,247,212,268,278,330,322,484,477,457,467,635,626,1770,1527,2120,2087,1608,1711,1528,2119,2165,2113,1252,1235]} 1. Nf3 {[%emt 0:03:49]} d5 {[%emt 0:00:08]} 2. e3 {[%emt 0:00:16]} c5 {[%emt 0:01:37]} 3. c4 {[%emt 0:01:40]} d4 {[%emt 0:00:57]} 4. b4 {[%emt 0:00:42]} dxe3 {[%emt 0:07:04]} 5. fxe3 {[%emt 0:00:08]} cxb4 {[%emt 0:00:02]} 6. d4 {[%emt 0:00:07]} Nf6 {[%emt 0:00:51]} 7. Bd3 {[%emt 0:01:45][%mdl 1024] White has compensation.} Nbd7 {[%emt 0:06:37][%cal Oe7e5]} 8. O-O {[%emt 0:08:20]} Qc7 {[%emt 0:08:30] White has an edge.} 9. a3 {[%emt 0:09:15]} e5 {[%emt 0:02:27] [#] ...e4 would now be deadly.} 10. Nbd2 {[%emt 0:00:12] And now c5 would win.} bxa3 {[%emt 0:02:48]} (10... b6 $14) 11. Qa4 {[%emt 0:00:35]} (11. Qb3 $142) 11... Qc6 $16 {[%emt 0:03:46]} 12. Qc2 {[%emt 0:00:17]} Be7 {[%emt 0:03:38]} 13. Ne4 {[%emt 0:28:43]} (13. Nxe5 $6 Nxe5 14. dxe5 Ng4 $11) (13. dxe5 Ng4 14. Nb3 Ndxe5 (14... Ngxe5 15. Nfd4 $11) 15. Nxe5 Nxe5 $17) 13... Nxe4 {[%emt 0:08:43]} 14. Bxe4 {[%emt 0:00:08]} Qc7 {[%emt 0:01:16]} ({Better is} 14... Qh6 $14) 15. Bxh7 {[%emt 0:13:39] White has more active pieces. The black rooks are passive.} ({White should play} 15. Bxa3 $16 Bxa3 16. Rxa3) 15... e4 $2 {[%emt 0:04:21] [#] Black cannot hold the game after this.} 16. Bxe4 $18 {[%emt 0:00:36]} (16. Qxe4 $2 Nf6 (16... Qxc4 17. Bxa3 Qe6 18. Qxe6 $16) 17. Qd3 Nxh7 $19 (17... Rxh7 $2 18. Bxa3 Bxa3 19. Qxa3 $19)) 16... Bd6 {[%emt 0:00:20]} (16... Nf6 {keeps fighting.} 17. Bd3 (17. Bxa3 O-O $18) 17... Be6) 17. h3 {[%emt 0:03:08]} ({Don't do} 17. Bxa3 Bxh2+ 18. Nxh2 Qxh2+ 19. Kf2 Qh4+ (19... Nf6 $2 20. Rh1 $18) 20. g3 Qg5 $18) 17... Nf6 {[%emt 0:00:28]} 18. Bxa3 {[%emt 0:07:31]} Bxa3 {[%emt 0:04:05]} 19. Rxa3 {[%emt 0:00:05]} Bxh3 {[%emt 0:00:51]} 20. Ne5 {[%emt 0:00:13]} ({Don't take} 20. gxh3 $6 Qg3+ 21. Qg2 (21. Kh1 $2 Rxh3+ 22. Nh2 Ng4 $19) 21... Qxg2+ 22. Kxg2 Nxe4) 20... Be6 {[%emt 0:04:38]} 21. Rb1 {[%emt 0:02:39]} Bc8 {[%emt 0:06:41]} 22. Qa4+ {[%emt 0:07:15]} Kd8 {[%emt 0:03:24]} (22... Bd7 $142 23. Rxb7 Bxa4 24. Rxc7 Nxe4 25. Rxa4 Rb8) 23. Bf3 {[%emt 0:01:51] White is clearly winning.} Re8 {[%emt 0:01:06][%cal Bh8e8,Be8e7,Be7b7][%mdl 32]} 24. Rab3 {[%emt 0:00:49]} Re7 {[%emt 0:01:41]} 25. c5 {[%emt 0:06:58]} Ne8 {[%emt 0:11:11]} 26. Bxb7 {[%emt 0:01:13]} Bxb7 {[%emt 0:00:14]} 27. Rxb7 {[%emt 0:00:05]} Qxb7 {[%emt 0:00:29]} 28. Rxb7 {[%emt 0:00:19]} Rxb7 {[%emt 0:00:05]} 29. Qc6 {[%emt 0:00:05]} Rab8 {[%emt 0:00:44]} 30. Qd5+ {[%emt 0:00:07]} Kc8 {[%emt 0:00:23]} 31. Nxf7 {[%emt 0:00:26] Weighted Error Value: White=0.16 (very precise) /Black=0.57.  Loses game:     	---       	Black=1      Mistake:       	White=2     	Black=4      Inaccurate:     	White=1     	Black=3      OK:         	White=9     	Black=3      Best:        	White=2     	Black=1} 1-0

[Event "9th Porticcio Open 2024"]
[Site "Porticcio"]
[Date "2024.07.02"]
[Round "5.7"]
[White "Nayak Rajesh"]
[Black "Terrieux, Kevin"]
[Result "1-0"]
[ECO "B66"]
[WhiteElo "2185"]
[BlackElo "2408"]
[Annotator "TA"]
[PlyCount "106"]
[EventDate "2024.07.01"]
[EventType "swiss"]
[EventCountry "FRA"]
[SourceTitle "playchess.com"]
[Source "ChessBase"]
[SourceQuality "1"]
[TimeControl "5400+30"]

{[%evp 18,106,71,62,77,-27,-40,-47,-11,-47,-31,-143,-163,-189,-177,-179,-195,-237,-98,-105,-98,-87,-95,-98,-106,-92,-73,-220,-232,-525,-525,-523,-189,-181,-178,-164,-143,-238,-226,-239,-232,-233,-246,-258,-156,-158,-127,-131,-129,-129,-138,-332,-169,-168,-170,-166,-4,0,0,0,0,-23,-23,-20,-17,-10,-10,-28,0,-15,0,-26,0,-19,-24,-22,0,0,0,0,0,0,0,0,0,0,0,0,0,0,0]} 1. e4 {[%emt 0:00:04]} c5 {[%emt 0:02:21]} 2. Nf3 {[%emt 0:00:13]} d6 {[%emt 0:00:31]} 3. d4 {[%emt 0:00:39]} cxd4 {[%emt 0:00:18]} 4. Nxd4 {[%emt 0:00:10]} Nf6 {[%emt 0:00:10]} 5. Nc3 {[%emt 0:00:09]} Nc6 {[%emt 0:00:11]} 6. Bg5 {[%emt 0:00:22]} e6 {[%emt 0:00:35]} 7. Qd2 {[%emt 0:00:19]} Qb6 {[%emt 0:01:42]} 8. Nb3 {[%emt 0:08:25]} a6 {[%emt 0:01:08]} 9. O-O-O {[%emt 0:00:26]} Qc7 {[%emt 0:01:04]} 10. f4 {[%emt 0:13:13] White is more active.} b5 {[%emt 0:04:49] [#]} 11. e5 {[%emt 0:12:50]} dxe5 $11 {[%emt 0:09:08]} 12. fxe5 {[%emt 0:00:22]} Nd7 {[%emt 0:04:23] Black is slightly better.} 13. Ne4 {[%emt 0:15:44]} Ncxe5 {[%emt 0:05:04]} 14. Nd4 {[%emt 0:10:04]} (14. Na5 $15) 14... Bb7 $17 {[%emt 0:02:07]} 15. Qe2 {[%emt 0:03:53]} Rc8 {[%emt 0:26:05]} 16. Kb1 {[%emt 0:01:41]} Nc4 $1 {[%emt 0:01:41]} 17. g3 {[%emt 0:14:59]} Bxe4 {[%emt 0:28:59]} (17... Qe5 $19 18. Bg2 Bxe4 19. Bxe4 Qxg5) 18. Qxe4 {[%emt 0:00:19][%cal Od4e6]} Nc5 {[%emt 0:00:12] Excellent horsemanship.} 19. Qf3 {[%emt 0:07:12]} Bd6 {[%emt 0:00:52]} (19... Be7 {simplifies} 20. Bxc4 bxc4 21. Bxe7 Qxe7 22. Rhe1 O-O) 20. Bxc4 {[%emt 0:02:22]} bxc4 {[%emt 0:00:08]} 21. Qe2 {[%emt 0:00:11]} c3 {[%emt 0:01:48] Hoping for ...cxb2.} 22. Nf5 {[%emt 0:00:21]} (22. b3 $17) 22... Be5 $19 {[%emt 0:01:01]} 23. Be7 $2 {[%emt 0:01:46]} (23. Rhe1 {was necessary.} f6 24. Qxe5 fxe5 25. Nd6+ Kf8 26. Nxc8) 23... Qb7 {[%emt 0:02:40][%csl Gc3,Ge5][%cal Rb7b2]} (23... exf5 $2 24. Bd6 Qd7 25. Qxe5+ Ne6 26. Rhf1 $18 (26. bxc3 f6 $16) (26. Qxf5 Qb5 $18)) 24. b3 {[%emt 0:01:18]} exf5 $2 {[%emt 0:00:13]} (24... Ne4 25. Bd6 Nxd6 26. Rxd6 Qxh1+ 27. Rd1 Qxd1+ 28. Qxd1 exf5) 25. Qxe5 {[%emt 0:00:31]} Qxe7 {[%emt 0:00:24]} 26. Qxg7 {[%emt 0:00:08]} Rf8 {[%emt 0:00:35] White must now prevent ...Ne4.} 27. Qxc3 {[%emt 0:00:06] [#]} (27. Qxh7 $17 Qf6 28. Rd5) 27... Qe6 $1 {[%emt 0:01:50]} 28. Rhe1 {[%emt 0:03:16]} Ne4 {[%emt 0:00:02]} 29. Qb4 {[%emt 0:00:08][%cal Og3g4]} Rg8 {[%emt 0:01:46]} 30. c4 {[%emt 0:01:06]} Qe7 {[%emt 0:02:02]} 31. Qa5 {[%emt 0:00:54]} Rc5 {[%emt 0:01:12]} 32. Qxa6 {[%emt 0:00:16] White wants to mate with Qa8+.} Kf8 {[%emt 0:00:10]} 33. Qh6+ {[%emt 0:00:45]} Rg7 {[%emt 0:00:05]} 34. g4 $2 {[%emt 0:02:03]} (34. Rd3 $17) 34... Re5 {[%emt 0:00:26]} (34... fxg4 $142 {Strongly threatening ...Re5.} 35. Re3 Kg8) 35. gxf5 {[%emt 0:00:43][%cal Oe1e4] [#]} f6 $1 {[%emt 0:00:24]} (35... Rxf5 36. Qc6 Re5 37. Qc8+ Qe8 38. Rd8 $18) ({Worse is} 35... Nc3+ 36. Kc2 Rxe1 37. f6 Qe4+ 38. Rd3 Re2+ 39. Kxc3 Qe5+ 40. Kb4 Qb8+ 41. Kc3 Qe5+ 42. Kb4 Qb8+ 43. Kc3 Qe5+ $11) 36. Kc2 {[%emt 0:00:52] Prevents Nc3.} Nd6 $2 {[%emt 0:01:41]} (36... Kg8 $19 {And now ...Rg2+ would win.} 37. Re2 Rg5 (37... Rxf5 38. Qh3 $17)) 37. Rxe5 $1 $11 {[%emt 0:00:34]} Qxe5 {[%emt 0:00:01]} 38. Rd5 {[%emt 0:00:22] The board is on fire.} Nxf5 {[%emt 0:00:44][%cal Bd6f5,Bf5h6,Bh6g4][%mdl 32]} 39. Rxe5 {[%emt 0:01:14]} (39. Qxg7+ $5 Nxg7 40. Rxe5 fxe5 41. Kd3 $17) 39... Nxh6 {[%emt 0:00:09][%mdl 4096] Endgame. KRN-KR} 40. Rh5 {[%emt 0:00:00]} Ng4 {[%emt 0:00:19]} 41. a4 {[%emt 0:00:00][%cal Ba2a4,Ba4a5][%mdl 32]} Ke7 {[%emt 0:01:26][%cal Of6f5] Black wants to play ...f5!} 42. a5 {[%emt 0:00:04]} Kd6 {[%emt 0:00:24]} 43. Rd5+ {[%emt 0:00:31]} Kc7 {[%emt 0:00:13] aiming for ...Ne3+.} 44. Kc3 {[%emt 0:00:08]} Ne5 {[%emt 0:00:03]} 45. Rd4 {[%emt 0:00:49]} Nc6 {[%emt 0:01:08]} 46. Rf4 {[%emt 0:00:16]} Nxa5 {[%emt 0:00:38] The position is equal.} 47. Rxf6 {[%emt 0:00:05]} Nc6 {[%emt 0:00:21]} 48. b4 {[%emt 0:00:40][%cal Bb3b4,Bb4b5][%mdl 32]} Re7 {[%emt 0:00:04]} 49. b5 {[%emt 0:00:12]} Ne5 {[%emt 0:00:21]} 50. h3 {[%emt 0:00:35]} Nd7 {[%emt 0:00:10]} 51. Rh6 {[%emt 0:00:11]} Kb7 {[%emt 0:00:18]} 52. Kb4 {[%emt 0:00:41]} Nb6 {[%emt 0:01:38]} 53. c5 {[%emt 0:00:31]} Re4+ {[%emt 0:00:19][%mdl 32768] And White is the lucky defender.   Weighted Error Value: White=0.30/Black=0.29 (precise) .  Loses game:     	White=1     	---        Missed win:     	---       	Black=1      Mistake:       	White=5     	Black=3      Inaccurate:     	White=1     	Black=3      OK:         	White=20    	Black=21     Best:        	White=3     	Black=4      Strong:       	White=1     	Black=1     . Loss on time!?} 1-0